[Event "44th Chess Olympiad Women 2022"]
[Site "Chennai"]
[Date "2022.08.01"]
[Round "4.17"]
[White "Toro Pradenas, Maria Jose"]
[Black "Nguyen, Thien Ngan"]
[Result "1-0"]
[ECO "C77"]
[WhiteElo "1945"]
[BlackElo "1912"]
[Annotator "TA"]
[PlyCount "83"]
[EventDate "2022.07.29"]
[EventType "team-tourn"]
[EventCountry "IND"]
[SourceTitle "playchess.com"]
[Source "ChessBase"]
[SourceQuality "1"]
[WhiteTeam "Chile"]
[BlackTeam "Vietnam"]
[WhiteTeamCountry "CHI"]
[BlackTeamCountry "VIE"]
[TimeControl "40/5400+30:1800+30"]

{[%evp 16,83,24,18,36,12,20,0,23,-9,-10,-29,-31,-27,-6,-29,0,0,14,0,9,-88,27,17,82,31,37,27,27,27,27,21,14,2,29,32,33,14,33,0,23,27,61,60,91,95,182,183,227,184,192,173,345,324,494,520,722,723,691,605,5270,5258,5250,5162,29988,29989,29985,29986,29998,29999]} 1. e4 {[%emt 0:00:02]} e5 {[%emt 0:00:09]} 2. Nf3 {[%emt 0:00:07]} Nc6 {[%emt 0:00:09]} 3. Bb5 {[%emt 0:00:08]} a6 {[%emt 0:00:09]} 4. Ba4 {[%emt 0:00:06]} Nf6 {[%emt 0:00:10]} 5. d3 {[%emt 0:00:08][%cal Bd2d3,Bd3d4,Bd4d5][%mdl 32]} b5 {[%emt 0:00:18]} 6. Bb3 {[%emt 0:00:04]} Be7 {[%emt 0:00:18]} 7. O-O {[%emt 0:08:47]} d6 {[%emt 0:00:53]} 8. c3 {[%emt 0:00:22]} O-O {[%emt 0:00:22]} 9. Nbd2 {[%emt 0:04:31] 9.h3 is a critical line.} Bb7 {[%emt 0:03:33] C77: Ruy Lopez: 3...a6 4 Ba4 Nf6, unusual lines.} 10. d4 {[%emt 0:02:34]} Re8 {[%emt 0:05:34] [#]} 11. Bc2 $146 {[%emt 0:06:51]} ({Predecessor:} 11. Re1 exd4 12. Nxd4 Nxd4 13. cxd4 Bf8 14. Bc2 c5 15. d5 Nd7 16. Nf3 Ne5 17. Nxe5 dxe5 {1-0 (48) Del Carril,J (2000)-Salomone,N (1730) SEMI email 1998}) 11... Bf8 {[%emt 0:00:29] The position is equal.} 12. d5 {[%emt 0:01:45]} Nb8 {[%emt 0:00:32][%cal Bc6b8,Bb8d7,Bd7b6][%mdl 32]} 13. b3 {[%emt 0:02:10]} c6 {[%emt 0:09:51]} 14. c4 {[%emt 0:06:45]} Nbd7 {[%emt 0:02:10]} 15. Re1 {[%emt 0:18:23]} g6 {[%emt 0:04:58]} 16. Nf1 {[%emt 0:17:07]} Nb6 {[%emt 0:06:44]} 17. Bd3 {[%emt 0:01:59]} Bg7 {[%emt 0:11:56][%cal Rc6d5]} 18. Bd2 {[%emt 0:07:23]} (18. Bg5 $11 {keeps the balance.}) 18... Nfd7 {[%emt 0:04:55]} (18... cxd5 $17 19. cxd5 Nbxd5 $1 20. exd5 e4) 19. Rc1 {[%emt 0:03:32]} Rc8 {[%emt 0:18:15]} (19... bxc4 $11 20. bxc4 a5) 20. Ne3 {[%emt 0:04:46] White is more active.} (20. dxc6 $16 Bxc6 21. cxb5 Bxb5 22. Bxb5 axb5 23. Qe2) 20... cxd5 $1 $14 {[%emt 0:08:38]} 21. Nxd5 {[%emt 0:01:34]} (21. cxd5 {looks sharper.} Rxc1 22. Qxc1 Nc5 23. Bc2) 21... Nxd5 {[%emt 0:05:48]} 22. cxd5 {[%emt 0:00:07]} Rxc1 {[%emt 0:00:23]} 23. Qxc1 {[%emt 0:02:06]} Nc5 {[%emt 0:00:16]} 24. Bb1 {[%emt 0:00:47]} Qd7 {[%emt 0:02:42]} (24... f5 {seems wilder.} 25. exf5 e4 26. b4 exf3 27. bxc5 dxc5 28. Qxc5 Rxe1+ 29. Bxe1 Bxd5 30. fxg6 hxg6 31. Bxg6 fxg2 32. Bb1 Be5) 25. Bb4 {[%emt 0:02:28]} Rc8 {[%emt 0:00:24][%cal Oc5e4] ...Nxe4! is the strong threat.} 26. Qg5 {[%emt 0:01:03]} f6 {[%emt 0:07:13]} 27. Qg3 {[%emt 0:01:15]} Qd8 {[%emt 0:02:14]} 28. h4 {[%emt 0:01:30][%cal Bh2h4,Bh4h5,Bh5h6][%mdl 32]} a5 {[%emt 0:00:59]} 29. Bd2 {[%emt 0:00:08]} b4 {[%emt 0:01:15]} 30. h5 {[%emt 0:00:20]} g5 {[%emt 0:02:05] [#]} (30... gxh5 $16 {was called for.} 31. Nh4 Rc7) 31. Nxg5 $1 $18 {[%emt 0:00:51][%cal Oh5h6][%mdl 512]} fxg5 {[%emt 0:00:18]} (31... Qe8 32. h6) 32. Bxg5 $40 {[%emt 0:00:03][%mdl 128] White attacks with force.} Qe8 {[%emt 0:01:16]} 33. h6 {[%emt 0:02:32][%mdl 1024] White has strong compensation.} Bf8 $2 {[%emt 0:01:01]} (33... Bh8) 34. Qh4 {[%emt 0:01:19] Black must now prevent Re3.} Qg6 {[%emt 0:00:31] [#]} (34... Nxb3 $142 35. axb3 Rc3) 35. Re3 $1 {[%emt 0:00:22]} Nd7 {[%emt 0:00:53]} 36. Rg3 {[%emt 0:00:24]} Kh8 {[%emt 0:00:25]} 37. Bd3 {[%emt 0:03:46][%cal Bb1d3,Bd3b5,Bb5d7,Bd7e6][%mdl 32] aiming for Bb5.} Qf7 {[%emt 0:00:34]} 38. Bb5 {[%emt 0:00:17] White threatens Bxd7 and mate.} Bxh6 {[%emt 0:00:35]} 39. Qxh6 {[%emt 0:00:18] Threatening mate with Bxd7.} Rg8 {[%emt 0:00:30]} 40. Bxd7 {[%emt 0:00:13] White mates.} Rg6 {[%emt 0:00:25]} 41. Be6 {[%emt 0:31:23]} Qe8 {[%emt 0:30:34]} 42. Bf6+ {[%emt 0:00:16] Weighted Error Value: White=0.15 (very precise) /Black=0.49} 1-0

[Event "44th Chess Olympiad Women 2022"]
[Site "Chennai"]
[Date "2022.08.01"]
[Round "4.33"]
[White "Yu, Weiyang"]
[Black "Norlamo, Sarabella"]
[Result "0-1"]
[ECO "C79"]
[WhiteElo "1504"]
[BlackElo "1925"]
[Annotator "TA"]
[PlyCount "118"]
[EventDate "2022.07.29"]
[EventType "team-tourn"]
[EventCountry "IND"]
[SourceTitle "playchess.com"]
[Source "ChessBase"]
[SourceQuality "1"]
[WhiteTeam "New Zealand"]
[BlackTeam "Finland"]
[WhiteTeamCountry "NZL"]
[BlackTeamCountry "FIN"]
[TimeControl "40/5400+30:1800+30"]

{[%evp 16,118,28,39,36,32,19,31,33,-39,-35,-34,0,-4,-6,-16,5,17,66,74,73,-108,-37,-43,48,30,48,37,48,0,20,27,94,-5,75,0,0,0,0,0,514,502,469,47,58,-70,-70,-92,-67,-155,20,23,16,12,19,-35,-43,-40,10,-34,-29,-54,-12,-12,-33,-197,-213,-216,-203,-320,-235,-296,-127,-558,-525,-708,-676,-1640,-1479,-1650,-1461,-1665,-1529,-29969,-11815,-29979,-29979,-29982,-29981,-29983,-29984,-29984,-29982,-29982,-29983,-29983,-29984,-29984,-29985,-29985,-29986,-29986,-29987,-29987,-29988]} 1. e4 {[%emt 0:00:03]} e5 {[%emt 0:00:06]} 2. Nf3 {[%emt 0:00:06]} Nc6 {[%emt 0:00:05]} 3. Bb5 {[%emt 0:00:03]} a6 {[%emt 0:00:06]} 4. Ba4 {[%emt 0:00:03]} Nf6 {[%emt 0:00:06]} 5. O-O {[%emt 0:00:04]} b5 {[%emt 0:00:06]} 6. Bb3 {[%emt 0:00:06]} Be7 {[%emt 0:00:09]} 7. d4 {[%emt 0:00:04]} d6 {[%emt 0:39:19]} 8. c3 {[%emt 0:03:47]} exd4 {[%emt 0:05:20]} 9. cxd4 {[%emt 0:00:53]} Bg4 {[%emt 0:07:05] C79: Ruy Lopez: Steinitz-type lines with 3...a6 4 Ba4 Nf6 5 0-0 d6.} 10. Be3 {[%emt 0:02:52]} Na5 {[%emt 0:04:23][%cal Bc6a5,Ba5c4,Bc4e3][%mdl 32]} (10... Nxe4 $2 11. Qc2 Qd7 12. Qxe4 $18) 11. Bc2 {[%emt 0:08:36]} Nc4 {[%emt 0:00:05] White is slightly better.} 12. b3 {[%emt 0:03:44]} (12. Bc1 $14) 12... Nxe3 $15 {[%emt 0:00:46]} 13. fxe3 {[%emt 0:00:06] [#]} Bh5 $146 {[%emt 0:05:10]} ({Predecessor:} 13... O-O 14. Nc3 Nd7 15. Qe1 c5 16. Qg3 Bh5 17. e5 dxe5 18. Nxe5 Bd6 19. Qh3 Nf6 {0-1 (30) Kriviciute,V (1779)-Juknaite,A (1655) Birzai 2011}) 14. Qe1 {[%emt 0:10:15]} Bg6 {[%emt 0:00:33]} 15. Nbd2 {[%emt 0:05:58]} d5 {[%emt 0:15:22]} 16. Ne5 {[%emt 0:08:14]} Bb4 {[%emt 0:01:10]} (16... dxe4 $11 17. Nxe4 (17. Nxg6 hxg6 18. Nxe4 Nd5 $11) 17... Qd5 18. Nxf6+ (18. Nxg6 hxg6 19. Rf4 Qe6 $11) 18... Bxf6 19. Bxg6 hxg6) 17. Nxg6 $14 {[%emt 0:06:02]} hxg6 {[%emt 0:00:06]} 18. Qf2 $2 {[%emt 0:10:36]} (18. e5 $1 $16 {[%cal Re5f6] is forced if you want to stay better.}) 18... Bxd2 {[%emt 0:03:02]} (18... Qe7 $1 $17 {...Ng4 is the strong threat.} 19. h3 dxe4) 19. e5 $15 {[%emt 0:08:27]} Bxe3 {[%emt 0:04:56]} 20. Qxe3 $14 {[%emt 0:00:47]} Ng4 {[%emt 0:00:29]} 21. Qf4 {[%emt 0:02:26][%csl Gf1,LRf7,LRg4][%cal Rf4f7][%mdl 1024] White has compensation.} Nh6 {[%emt 0:00:02]} 22. e6 {[%emt 0:05:49]} (22. Bd3 $14) 22... O-O {[%emt 0:02:24]} 23. Qe5 $36 {[%emt 0:09:52][%mdl 2048] Threatens to win with e7. White has good play.} f6 {[%emt 0:05:16]} (23... Qh4 $11) 24. Qg3 {[%emt 0:02:03]} (24. Qe2 $16 {aiming for e7.} Qe7 25. Bxg6) 24... g5 {[%emt 0:00:38]} (24... f5 $11) 25. Qd3 {[%emt 0:00:52]} (25. Rae1 $16 Qe7 26. Qf3 (26. Qd3 f5 $14)) 25... f5 $11 {[%emt 0:00:08]} 26. Rae1 {[%emt 0:02:36]} Qe7 {[%emt 0:00:38]} 27. Qh3 {[%emt 0:00:23][%cal Rf1f5]} f4 $2 {[%emt 0:03:03][%mdl 8192] [#]} (27... g4 $11 {and Black has nothing to worry.} 28. Qh5 Rf6) 28. Qd3 $1 $18 {[%emt 0:00:59][%csl Gc2][%cal Rd3h7]} Nf5 {[%emt 0:00:17]} 29. Re5 $2 {[%emt 0:01:01]} (29. Qh3 g6 $11) (29. g4 $18) 29... g6 $14 {[%emt 0:00:13]} 30. Rxd5 {[%emt 0:04:09]} (30. Qh3 $1 $14) 30... Qxe6 $15 {[%emt 0:00:08]} 31. Re5 {[%emt 0:00:37]} Qd6 {[%emt 0:00:27] Black is more active.} 32. b4 {[%emt 0:01:19]} (32. Qe4 $15) 32... Qxd4+ $2 {[%emt 0:01:06]} (32... Kg7 $17 33. Rc5 Rae8) 33. Qxd4 $11 {[%emt 0:00:15]} Nxd4 {[%emt 0:00:02]} 34. Bxg6 {[%emt 0:00:25]} Kg7 {[%emt 0:02:02]} 35. Be4 {[%emt 0:00:38]} (35. Rxg5 $11 Kh6 36. h4) 35... Kf6 $15 {[%emt 0:01:23]} 36. Rc5 {[%emt 0:00:27]} ({Reject} 36. Rd5 Ne2+ 37. Kf2 Nc3 38. Rf5+ Ke6 39. Rxf8 Nxe4+ 40. Kf3 Nd2+ 41. Ke2 Rxf8 $17) 36... Ra7 {[%emt 0:00:29]} (36... Rae8 $15 37. Bb7 Rh8) 37. Rd1 {[%emt 0:00:31]} Rd8 {[%emt 0:00:40]} 38. Bd5 {[%emt 0:01:25]} Ne6 {[%emt 0:00:49]} 39. Rc6 {[%emt 0:00:24]} Rd6 {[%emt 0:00:12]} 40. Re1 {[%emt 0:00:47]} ({White should try} 40. Rxd6 $1 $15 cxd6 41. Bf3) 40... Rxc6 $19 {[%emt 0:01:26]} ({Worse is} 40... Rxd5 41. Rexe6+ Kf5 42. Re2 $15) 41. Bxc6 {[%emt 0:30:17][%mdl 4096] Endgame [#] KRB-KRN} Nd4 $1 {[%emt 0:04:09]} 42. Be4 {[%emt 0:00:00]} (42. Bd5 {was necessary.}) 42... c6 {[%emt 0:05:12]} 43. Bf3 {[%emt 0:00:00]} Nc2 {[%emt 0:06:40]} (43... a5 $19 44. a3 Nc2) 44. Re4 {[%emt 0:00:00][%mdl 8192]} (44. Rc1 $17 {is tougher.} Nd4 45. Rc3) 44... Re7 {[%emt 0:04:26]} 45. Rxe7 {[%emt 0:00:00]} Kxe7 {[%emt 0:00:02]} 46. Bxc6 {[%emt 0:00:00][%cal Oa2a3]} Nxb4 {[%emt 0:00:05] KB-KN} 47. Bb7 {[%emt 0:00:00]} a5 {[%emt 0:01:56][%cal Ba6a5,Ba5a4][%mdl 32]} 48. a3 {[%emt 0:00:00]} Nc2 {[%emt 0:00:08]} 49. g3 {[%emt 0:00:00]} fxg3 {[%emt 0:00:50]} 50. hxg3 {[%emt 0:00:00]} Nxa3 {[%emt 0:00:12] Black mates.} 51. Bd5 {[%emt 0:00:00]} Kd6 {[%emt 0:01:58]} 52. Bg8 {[%emt 0:00:00]} a4 {[%emt 0:00:24]} 53. Kf2 {[%emt 0:00:00]} b4 {[%emt 0:01:25]} 54. Ke2 {[%emt 0:00:00]} b3 {[%emt 0:00:54]} 55. Kd2 {[%emt 0:00:00]} b2 {[%emt 0:00:39]} 56. Bh7 {[%emt 0:00:00]} b1=Q {[%emt 0:00:15]} 57. Bxb1 {[%emt 0:00:00]} Nxb1+ {[%emt 0:00:06]} 58. Kc2 {[%emt 0:00:00]} Na3+ {[%emt 0:00:37]} 59. Kb2 {[%emt 0:00:00]} Nb5 {[%emt 0:00:12] Quite a comeback for Black.  Weighted Error Value: White=0.88/Black=0.42} 0-1

[Event "44th Chess Olympiad Women 2022"]
[Site "Chennai"]
[Date "2022.08.01"]
[Round "4.34"]
[White "Munoz Santana, Doribel"]
[Black "Bobomurodova, Maftuna"]
[Result "0-1"]
[ECO "D11"]
[WhiteElo "1851"]
[BlackElo "1914"]
[Annotator "TA"]
[PlyCount "52"]
[EventDate "2022.07.29"]
[EventType "team-tourn"]
[EventCountry "IND"]
[SourceTitle "playchess.com"]
[Source "ChessBase"]
[SourceQuality "1"]
[WhiteTeam "Dominican Republic"]
[BlackTeam "Uzbekistan"]
[WhiteTeamCountry "DOM"]
[BlackTeamCountry "UZB"]
[TimeControl "40/5400+30:1800+30"]

{[%evp 13,52,-11,-4,-10,-4,-2,-5,-70,-53,-87,-81,-114,-108,-99,-98,-145,-102,-115,-124,-113,-123,-127,-127,-125,-70,-91,-71,-121,-67,-49,-63,-68,0,0,0,-2,37,-16,-21,-904,-889]} 1. d4 {[%emt 0:00:03]} Nf6 {[%emt 0:00:29]} 2. Nf3 {[%emt 0:00:06]} d5 {[%emt 0:00:26]} 3. g3 {[%emt 0:00:07]} Bf5 {[%emt 0:00:06]} 4. Bg2 {[%emt 0:00:07]} e6 {[%emt 0:00:47]} 5. O-O {[%emt 0:00:07]} Nbd7 {[%emt 0:02:36]} 6. Nbd2 {[%emt 0:01:12]} h6 {[%emt 0:00:10]} 7. c4 {[%emt 0:00:29]} c6 {[%emt 0:03:46][%cal Bc7c6,Bc6d5][%mdl 32]} 8. a3 {[%emt 0:03:08] D11: Slav Defence: 3 Nf3 sidelines and 3...Nf6 4 e3 Bg4.} Be7 {[%emt 0:04:04]} 9. b4 {[%emt 0:00:09]} a5 {[%emt 0:05:52]} 10. bxa5 {[%emt 0:12:44]} (10. Bb2 $1 $11) 10... Qxa5 $15 {[%emt 0:01:49]} 11. Qb3 {[%emt 0:09:17]} O-O {[%emt 0:02:37] [#] Black is more active.} 12. cxd5 $146 {[%emt 0:01:20]} ({Predecessor:} 12. Ne5 Nxe5 13. dxe5 Nd7 14. Qxb7 Ra7 15. Qb3 Rb8 16. Qe3 Bc5 17. Nb3 Qxa3 18. Rxa3 Bxe3 19. Rxa7 Bxa7 {0-1 (27) Micek,J (1791)-Horvath,A (2421) Slovakia 2004}) 12... cxd5 {[%emt 0:05:50]} 13. Ne5 {[%emt 0:04:11]} Nb6 {[%emt 0:09:01]} 14. f3 {[%emt 0:05:36]} (14. Nb1 $142) 14... Bb4 {[%emt 0:11:09] [#] ...Bc3 is the strong threat.} 15. e4 {[%emt 0:09:28] Hoping for Qe3.} Bc3 {[%emt 0:06:32]} ({Worse is} 15... Bxd2 16. Bxd2 (16. exf5 Nc4 $15) 16... Qxd2 17. Rfd1 $15) 16. Bb2 {[%emt 0:02:30]} Bxd2 {[%emt 0:00:25]} 17. exf5 {[%emt 0:00:09]} exf5 {[%emt 0:02:06]} 18. Rad1 {[%emt 0:06:25] [#] Threatens to win with Qd3.} Na4 {[%emt 0:04:29]} (18... Nc4 $17 {And now ...Rfc8 would win.} 19. Nxc4 dxc4 20. Qxc4 f4) 19. Ba1 {[%emt 0:03:19]} Bc3 {[%emt 0:06:43]} 20. Bxc3 {[%emt 0:08:04]} (20. Kh1 $142) 20... Qxc3 {[%emt 0:01:55]} ({Black should try} 20... Nxc3 $17 21. Rd3 Rfc8 22. Qxb7 Rc7) 21. Rd3 {[%emt 0:02:43]} Qc7 {[%emt 0:04:26]} 22. Rb1 {[%emt 0:01:16]} b6 {[%emt 0:01:18]} ({Black should play} 22... Rfc8 $15) 23. Bf1 $11 {[%emt 0:03:24]} Rfc8 {[%emt 0:02:20][%cal Of5f4]} 24. Re1 {[%emt 0:05:19]} Ra5 {[%emt 0:05:06]} 25. Rd2 {[%emt 0:06:23]} (25. Rde3 $14) 25... Qc3 {[%emt 0:04:12]} 26. Rd3 $2 {[%emt 0:01:25][%mdl 8192]} Qxe1 {[%emt 0:00:09] Weighted Error Value: White=0.54/Black=0.21 (precise)} 0-1

[Event "44th Chess Olympiad Women 2022"]
[Site "Chennai"]
[Date "2022.08.01"]
[Round "4.40"]
[White "Petricenco, Ana"]
[Black "Rondon Chacon, Yolys Desiree"]
[Result "1/2-1/2"]
[ECO "B01"]
[WhiteElo "1912"]
[BlackElo "1688"]
[Annotator "TA"]
[PlyCount "89"]
[EventDate "2022.07.29"]
[EventType "team-tourn"]
[EventCountry "IND"]
[SourceTitle "playchess.com"]
[Source "ChessBase"]
[SourceQuality "1"]
[WhiteTeam "Moldova"]
[BlackTeam "Panama"]
[WhiteTeamCountry "MDA"]
[BlackTeamCountry "PAN"]
[TimeControl "40/5400+30:1800+30"]

{[%evp 9,89,47,64,44,52,56,51,47,51,41,49,54,58,28,85,83,87,68,81,66,88,87,87,83,86,77,80,65,105,91,92,43,47,47,49,30,37,33,32,30,37,29,29,29,29,15,16,0,0,0,14,1,38,41,37,33,37,35,35,0,26,16,14,14,14,14,16,14,31,8,14,0,12,0,3,5,9,0,4,0,0,0]} 1. e4 {[%emt 0:00:03]} d5 {[%emt 0:00:24]} 2. exd5 {[%emt 0:00:08]} Qxd5 {[%emt 0:00:05]} 3. Nc3 {[%emt 0:00:14]} Qd6 {[%emt 0:00:06]} 4. d4 {[%emt 0:00:56]} Nf6 {[%emt 0:00:12]} 5. Nf3 {[%emt 0:00:05]} c6 {[%emt 0:00:13]} 6. g3 {[%emt 0:00:28] B01: Scandinavian Defence.} Bg4 {[%emt 0:03:42]} 7. Bg2 {[%emt 0:03:52]} e6 {[%emt 0:03:53]} 8. O-O {[%emt 0:03:44] White is slightly better.} Qc7 {[%emt 0:07:42]} 9. h3 {[%emt 0:01:21]} Bh5 {[%emt 0:05:45]} 10. Re1 {[%emt 0:03:10]} Be7 {[%emt 0:08:43]} 11. Bf4 {[%emt 0:02:16]} Qd8 {[%emt 0:01:30] [#]} (11... Bd6 $11) 12. Ne2 $146 {[%emt 0:06:05]} ({Predecessor:} 12. g4 Bg6 13. Na4 Nd5 14. Be5 O-O 15. a3 Nd7 16. c4 N5b6 17. Qb3 Nxe5 18. dxe5 {½-½ (59) Antal,L (2179)-Nadassy,A (2048) Budapest 2011}) 12... O-O {[%emt 0:02:08]} 13. c4 {[%emt 0:01:31]} Nbd7 {[%emt 0:06:33]} 14. Nc3 {[%emt 0:02:45]} Nb6 {[%emt 0:03:08]} 15. g4 {[%emt 0:06:08]} Bg6 {[%emt 0:00:47]} 16. Ne5 {[%emt 0:00:42]} Nfd7 {[%emt 0:07:21]} 17. Nxg6 {[%emt 0:05:50] White is much more active. The black rooks are badly placed.} hxg6 {[%emt 0:00:08]} 18. d5 {[%emt 0:03:00]} cxd5 {[%emt 0:20:57]} 19. cxd5 {[%emt 0:00:27]} e5 {[%emt 0:07:06]} 20. Bxe5 {[%emt 0:10:17]} (20. d6 $16 Bh4 21. Bc1 (21. Bxe5 Nxe5 22. Rxe5 Bxf2+ 23. Kh1 Bg3 $11)) 20... Nxe5 $14 {[%emt 0:00:07]} 21. Rxe5 {[%emt 0:00:04]} Nc4 {[%emt 0:02:22]} 22. Re4 {[%emt 0:05:38]} Nd6 {[%emt 0:01:08]} 23. Re2 {[%emt 0:00:12]} Re8 {[%emt 0:01:46]} 24. Qd3 {[%emt 0:02:19]} Bf6 {[%emt 0:02:43]} 25. Rae1 {[%emt 0:05:57][%cal Ba1e1,Be1e2,Be2c2,Bc2c1][%mdl 32]} Rxe2 {[%emt 0:01:35]} 26. Rxe2 {[%emt 0:00:06]} Rc8 {[%emt 0:02:20]} 27. Rc2 {[%emt 0:07:31]} Qc7 {[%emt 0:01:28]} 28. Rc1 {[%emt 0:07:05]} Qb6 {[%emt 0:02:21]} 29. Rc2 {[%emt 0:02:11]} Qc7 {[%emt 0:00:36]} 30. Bf3 {[%emt 0:07:24]} Qe7 {[%emt 0:04:56]} 31. Kg2 {[%emt 0:02:16]} Qc7 {[%emt 0:01:09]} 32. Bd1 {[%emt 0:01:09] Strongly threatening Ne4.} Qa5 {[%emt 0:01:56]} 33. Be2 {[%emt 0:06:58]} Qc5 {[%emt 0:00:12]} 34. Kg1 {[%emt 0:03:19]} Qa5 {[%emt 0:01:08]} 35. a3 {[%emt 0:02:08]} Bxc3 {[%emt 0:01:01][%mdl 64] [#] Remove Defender} 36. Rxc3 {[%emt 0:00:32]} Rxc3 {[%emt 0:00:24]} 37. Qxc3 {[%emt 0:00:31]} Qxd5 $11 {[%emt 0:00:17][%mdl 4096] Endgame KQB-KQN} 38. Bf3 {[%emt 0:00:15]} Qe6 {[%emt 0:00:32]} 39. Kg2 {[%emt 0:00:31]} (39. Qc7 {keeps more tension.} Qb3 40. Kg2 Nc4 41. Bxb7 Qxb2 42. Qb8+) 39... b6 {[%emt 0:00:16] The position is equal.} 40. Qd3 {[%emt 0:00:32]} Qe5 {[%emt 0:01:00]} 41. b3 {[%emt 0:30:43][%cal Bb2b3,Bb3b4][%mdl 32]} Qc5 {[%emt 0:04:12]} 42. b4 {[%emt 0:00:00]} Qe5 {[%emt 0:01:26]} 43. a4 {[%emt 0:00:00]} Qf4 {[%emt 0:03:11]} 44. b5 {[%emt 0:00:00]} Qe5 {[%emt 0:04:09]} 45. Bc6 {[%emt 0:00:00] Weighted Error Value: White=0.09 (flawless) /Black=0.07 (flawless)} 1/2-1/2

[Event "44th Chess Olympiad Women 2022"]
[Site "Chennai"]
[Date "2022.08.01"]
[Round "4.40"]
[White "Munoz Henriquez, Alba Esther"]
[Black "Mihailova, Alina"]
[Result "0-1"]
[ECO "C86"]
[WhiteElo "1588"]
[BlackElo "1926"]
[Annotator "TA"]
[PlyCount "62"]
[EventDate "2022.07.29"]
[EventType "team-tourn"]
[EventCountry "IND"]
[SourceTitle "playchess.com"]
[Source "ChessBase"]
[SourceQuality "1"]
[WhiteTeam "Panama"]
[BlackTeam "Moldova"]
[WhiteTeamCountry "PAN"]
[BlackTeamCountry "MDA"]
[TimeControl "40/5400+30:1800+30"]

{[%evp 21,62,0,0,14,31,-15,0,-68,-75,-66,-25,-36,-28,-29,-24,-31,0,0,0,0,0,0,0,0,0,0,0,0,54,41,73,77,111,97,137,109,242,241,285,70,139,-1018,-1001]} 1. e4 {[%emt 0:00:03]} e5 {[%emt 0:00:07]} 2. Nf3 {[%emt 0:00:07]} Nc6 {[%emt 0:00:08]} 3. Bb5 {[%emt 0:00:07]} a6 {[%emt 0:00:08]} 4. Ba4 {[%emt 0:00:09]} Nf6 {[%emt 0:00:10]} 5. Qe2 {[%emt 0:00:46]} b5 {[%emt 0:02:22]} 6. Bb3 {[%emt 0:00:07]} Be7 {[%emt 0:00:12]} 7. c3 {[%emt 0:00:08]} O-O {[%emt 0:00:29]} 8. O-O {[%emt 0:00:08]} d5 {[%emt 0:04:37]} 9. exd5 {[%emt 0:12:49]} Nxd5 {[%emt 0:02:15]} 10. Nxe5 {[%emt 0:02:49]} Nxe5 $1 {[%emt 0:00:19] The main line 10...Nxe5 scores better than 10...Nf4.} 11. Qxe5 {[%emt 0:00:26]} Nf6 {[%emt 0:01:04]} 12. d4 {[%emt 0:03:43] C86: Closed Ruy Lopez: Worrall Attack.} Re8 {[%emt 0:00:38]} (12... Bd6 $5 {[%cal Rd6e5]} 13. Qg5 Re8 $11) 13. Qg3 {[%emt 0:04:02]} (13. Bg5 $14 {was preferrable.}) 13... Bd6 $11 {[%emt 0:01:52][%mdl 1024] Black has compensation.} 14. Qd3 {[%emt 0:04:49]} (14. Qh4 $11) 14... c5 $1 $15 {[%emt 0:07:02] [#] White must now prevent ...c4.} 15. Bc2 $146 {[%emt 0:00:49]} ({Predecessor:} 15. Bd1 c4 16. Qc2 Bb7 17. Nd2 Qc7 18. g3 Ne4 19. Bf3 Ng5 20. Bxb7 Qxb7 21. Qf5 {1-0 (63) Wutz,C (2203)-Stoer,A (2152) Bayern 2011}) 15... c4 {[%emt 0:13:16] Black is more active.} 16. Qd1 {[%emt 0:01:46]} Qc7 {[%emt 0:06:23]} 17. h3 {[%emt 0:08:45]} Bb7 {[%emt 0:02:49]} 18. Nd2 {[%emt 0:04:56]} Rad8 {[%emt 0:13:18]} 19. Nf3 {[%emt 0:08:12]} Qc6 {[%emt 0:04:08]} 20. Bg5 {[%emt 0:07:34] And now Bxf6 would win.} Bb8 {[%emt 0:01:51]} 21. Re1 {[%emt 0:11:12]} h6 {[%emt 0:10:21]} 22. Rxe8+ {[%emt 0:07:39]} Rxe8 {[%emt 0:00:25]} 23. Be3 {[%emt 0:05:46]} Nd5 {[%emt 0:05:35]} 24. Qd2 {[%emt 0:03:58]} Qd6 {[%emt 0:01:25]} (24... Nxe3 $11 25. fxe3 Qe6) 25. Re1 $1 $14 {[%emt 0:05:46][%cal Oe3f4]} Ne7 {[%emt 0:01:17] Hoping for ...Bxf3.} 26. Qd1 {[%emt 0:01:58]} Qd5 {[%emt 0:09:06]} 27. Bc1 {[%emt 0:00:41]} f5 {[%emt 0:01:28]} 28. Qe2 {[%emt 0:02:51]} Kf7 {[%emt 0:03:12] [#]} (28... Bc6 $16) 29. Nh4 $1 $18 {[%emt 0:01:28][%cal Oc2f5] Threatens to win with Bxf5!} Qd6 {[%emt 0:05:59] [#] ( -> ...Qh2+)} 30. Qe5 {[%emt 0:00:40] Inhibits Qh2+.} ({Don't blunder} 30. Qh5+ $2 g6 31. Bf4 (31. Qxh6 $2 Qh2+ 32. Kf1 Qh1+ 33. Ke2 Ng8+ 34. Be3 Qxe1+ 35. Kxe1 Nxh6 $19) 31... Qxf4 $19) (30. Bf4 $1 $18 {[%mdl 512]} Qf6 31. Bxb8 Rxb8 32. Qh5+ g6 33. Qxh6) 30... Qc6 {[%emt 0:01:04]} ({Black should play} 30... Qxe5 $14 31. dxe5 g5 32. Nxf5 Nxf5 33. Bxf5 Rxe5 34. Rxe5 Bxe5) 31. Bxf5 $2 {[%emt 0:00:28][%mdl 8192]} Bxe5 {[%emt 0:00:13] Weighted Error Value: White=0.56/Black=0.28 (precise)} 0-1